bitfinex-derivatives/quotes_ETHF0:USTF0_20250308
["timestamp","ask_amount","ask_price","bid_price","bid_amount"]
[1741462858985,3.2078,2220.5,2220.0,3.56314195]
[1741462859490,3.2078,2220.5,2220.3,0.54061]
[1741462859678,3.2078,2220.5,2219.4,3.2078]
[1741462859885,3.2078,2220.2,2219.5,0.636]
[1741462860082,0.6078,2220.1,2219.5,1.9]
[1741462860285,0.61455447,2220.1,2219.9,0.5407]
[1741462860489,0.00675447,2220.1,2220.0,0.54069]
[1741462860688,0.00675447,2220.1,2219.7,0.54074]
[1741462861087,0.61455447,2220.1,2219.7,0.54074]
[1741462861391,0.61455447,2220.1,2219.7,0.54075]
[1741462861782,0.61455447,2220.1,2219.5,2.26501577]
[1741462861987,0.00675447,2220.1,2219.5,2.26501577]
[1741462862285,0.00675447,2220.1,2219.9,0.54071]
[1741462862591,0.00675447,2220.1,2220.0,0.54069]
[1741462862792,0.00675447,2220.1,2219.5,2.26501577]
[1741462862994,0.00675447,2220.1,2219.9,0.54069]
[1741462863193,0.00675447,2220.1,2220.0,0.54069]
[1741462863592,5.2978,2220.5,2220.4,0.54059]
[1741462863593,3.2078,2220.5,2220.4,0.54059]
[1741462865491,0.00675447,2220.7,2220.4,3.2078]
[1741462865897,0.00675447,2220.7,2220.4,3.74838]
[1741462866100,0.00675447,2220.7,2220.0,0.54067]
[1741462866101,3.2078,2220.5,2220.0,0.54067]
[1741462866595,0.6301,2220.4,2220.0,0.54067]
[1741462866797,0.5944,2220.3,2220.0,0.54067]
[1741462867291,0.5944,2220.3,2220.0,0.54068]
[1741462868097,0.5944,2220.3,2220.1,0.54066]
[1741462868596,0.5944,2220.3,2219.9,0.6088]
[1741462868898,0.5944,2220.3,2220.0,0.54068]
[1741462869498,0.5944,2220.3,2220.0,3.74848]
[1741462869693,0.5944,2220.3,2220.0,3.2078]
[1741462870094,0.5944,2220.3,2219.8,0.54748447]
[1741462870599,0.5944,2220.3,2219.8,0.00675447]
[1741462871292,0.5944,2220.3,2220.0,0.54067]
[1741462871493,0.5944,2220.3,2220.1,0.54066]
[1741462871692,0.5944,2220.3,2220.0,0.54067]
[1741462873194,0.5944,2220.3,2219.8,0.00675447]
[1741462873389,0.5944,2220.3,2220.0,0.54068]
[1741462873590,0.5944,2220.3,2219.8,0.00675447]
[1741462873795,0.5944,2220.3,2220.1,0.54065]
[1741462874590,0.003,2220.4,2220.0,3.2078]
[1741462874799,0.003,2220.4,2220.3,0.54061]
[1741462876196,0.003,2220.4,2220.3,3.74841]
[1741462877102,0.003,2220.4,2220.3,4.30468538]
[1741462881104,0.003,2220.4,2220.3,1.09688538]
[1741462881407,0.003,2220.4,2220.3,4.30468538]
[1741462883707,3.2078,2221.3,2220.3,3.76407538]
[1741462883896,3.2078,2221.3,2221.2,0.54039]
[1741462885400,0.00675447,2221.5,2221.0,0.00675447]
[1741462885600,0.00675447,2221.5,2221.4,0.54035]
[1741462887911,0.5983,2222.0,2221.3,3.2078]
[1741462888112,1.1862,2222.0,2221.7,3.2078]
[1741462888415,1.1862,2222.0,2221.9,0.54022]
[1741462889711,1.1862,2222.0,2221.7,3.2078]
[1741462889904,1.1862,2222.0,2221.8,0.54023]
[1741462890815,0.5879,2222.0,2221.9,0.54022]
[1741462892507,0.5879,2222.0,2221.7,3.2078]
[1741462892707,0.5879,2222.0,2221.4,1.2481]
[1741462892908,0.6183,2221.9,2221.6,0.54029]
[1741462895210,0.5879,2222.0,2221.8,0.54025]
[1741462895405,0.5879,2222.0,2221.3,3.2078]
[1741462895611,0.5403,2221.6,2220.9,0.54045]
[1741462895912,1.8827,2221.5,2220.9,0.54046]
[1741462896415,3.2078,2221.4,2220.8,0.54048]
[1741462897614,3.2078,2221.4,2220.7,3.57352498]
[1741462898017,2.6939,2221.5,2221.4,0.54035]
[1741462898515,0.6369,2221.5,2221.4,0.54035]
[1741462898714,2.057,2221.8,2221.4,3.2078]
[1741462899119,2.057,2221.8,2221.6,0.54029]
[1741462899720,2.057,2221.8,2221.5,0.54031]
[1741462900318,2.057,2221.8,2221.4,3.2078]
[1741462900621,3.2078,2221.7,2221.3,0.54037]
[1741462900918,3.2078,2221.7,2221.3,0.54035]
[1741462901219,2.057,2221.8,2221.3,0.54035]
[1741462901415,3.2078,2221.7,2221.1,1.16921]
[1741462901622,0.6464,2221.6,2221.1,1.16921]
[1741462901820,1.2414,2221.6,2221.1,0.6288]
[1741462902020,1.78171,2221.6,2221.1,0.6288]
[1741462902418,1.2414,2221.6,2221.1,0.6288]
[1741462902817,1.2414,2221.6,2221.0,3.21455447]
[1741462903023,3.2078,2221.4,2221.0,3.21455447]
[1741462903223,0.6128,2221.3,2221.0,3.21455447]
[1741462903923,1.15318,2221.3,2221.0,0.00675447]
[1741462904324,0.6128,2221.3,2221.0,0.00675447]
[1741462904736,1.15317,2221.3,2221.0,0.00675447]
[1741462906724,0.6128,2221.3,2221.0,0.00675447]
[1741462907123,2.6708,2221.3,2221.0,0.54718447]
[1741462907426,2.6708,2221.3,2221.0,0.00675447]
[1741462907629,2.6708,2221.3,2221.0,0.54718447]
[1741462908333,2.6708,2221.3,2221.1,0.54042]
[1741462908533,2.6708,2221.3,2221.0,0.00675447]
[1741462908829,0.6128,2221.3,2221.1,0.54041]
[1741462909034,0.6128,2221.3,2221.0,0.00675447]
[1741462909223,0.6128,2221.3,2221.1,0.54041]
[1741462909622,0.6128,2221.3,2221.0,0.00675447]
[1741462910221,0.6128,2221.3,2221.1,0.54042]
[1741462910427,0.6128,2221.3,2221.0,1.15678447]
[1741462910628,0.6128,2221.3,2221.0,0.61635447]
[1741462911335,0.6128,2221.3,2221.0,1.15678447]
[1741462912732,0.6128,2221.3,2221.0,0.00675447]
[1741462913728,2.057,2221.2,2221.0,0.00675447]
[1741462914336,0.6128,2221.3,2221.0,0.00675447]
[1741462914531,2.057,2221.2,2221.0,0.00675447]
[1741462917135,0.6128,2221.3,2221.0,0.00675447]
[1741462917334,2.057,2221.2,2221.0,0.00675447]
[1741462917734,2.6782,2221.2,2221.0,0.00675447]
[1741462918237,2.057,2221.2,2221.0,0.00675447]
[1741462918437,2.057,2221.2,2221.0,0.54718447]
[1741462918844,2.057,2221.2,2221.1,0.54042]
[1741462919034,2.057,2221.2,2221.0,0.54718447]
[1741462919430,2.6698,2221.3,2221.0,0.54718447]
[1741462921440,2.6698,2221.3,2221.0,0.00675447]
[1741462926841,3.21019,2221.3,2221.0,0.00675447]
[1741462927545,2.6698,2221.3,2221.0,0.00675447]
[1741462927939,3.21018,2221.3,2221.0,0.00675447]
[1741462928141,3.74822,2221.1,2221.0,0.00675447]
[1741462934768,5.2658,2221.1,2221.0,0.00675447]
[1741462935060,5.80622,2221.1,2221.0,0.00675447]
[1741462935254,7.06742,2221.1,2221.0,0.00675447]
[1741462943769,3.2078,2221.1,2220.3,3.8086]
[1741462944065,2.057,2221.0,2220.7,0.5405]
[1741462944267,2.59745,2221.0,2220.8,0.6192]
[1741462945467,2.057,2221.0,2220.8,0.6192]
[1741462947571,2.057,2221.0,2220.9,0.54047]
[1741462947774,0.00675447,2221.1,2220.9,1.2261]
[1741462947969,0.00675447,2221.1,2221.0,0.54044]
[1741462950474,3.8332,2221.7,2221.3,0.54037]
[1741462950676,2.057,2221.6,2221.4,1.75245]
[1741462950870,2.057,2221.6,2221.5,0.54032]
[1741462951270,3.2078,2221.7,2221.6,0.5403]
[1741462954080,3.2078,2221.7,2221.6,0.89630958]
[1741462954272,0.00675447,2221.9,2221.6,0.35600958]
[1741462954478,0.00675447,2221.9,2221.7,0.54027]
[1741462954679,0.00675447,2221.9,2221.8,0.54025]
[1741462955072,2.057,2222.1,2221.9,0.54022]
[1741462955279,2.057,2222.1,2222.0,1.2509]
[1741462957375,2.057,2222.1,2221.8,0.00675447]
[1741462957771,2.6452,2222.1,2221.8,0.00675447]
[1741462958075,3.18539,2222.1,2221.8,0.00675447]
[1741462958481,3.272,2222.1,2221.8,0.00675447]
[1741462958681,3.2078,2221.9,2221.2,1.2348]
[1741462958980,0.54025,2221.8,2221.2,1.77519]
[1741462959173,3.24498,2221.7,2221.2,1.77519]
[1741462959372,3.83318,2221.7,2221.2,1.77519]
[1741462960073,3.83318,2221.7,2221.2,1.78194447]
[1741462960472,0.54033,2221.5,2221.2,0.00675447]
[1741462960673,0.54035,2221.4,2221.2,0.00675447]
[1741462960975,2.6715,2221.3,2221.2,0.00675447]
[1741462964282,3.21187,2221.3,2221.2,0.00675447]
[1741462964783,2.6715,2221.3,2221.2,0.00675447]
[1741462965483,3.21187,2221.3,2221.2,0.00675447]
[1741462966583,2.6715,2221.3,2221.2,0.00675447]
[1741462967578,3.21187,2221.3,2221.2,0.00675447]
[1741462968686,0.54042,2221.1,2220.7,0.54051]
[1741462968879,0.6453,2221.2,2220.8,3.2078]
[1741462969080,0.5945,2221.1,2220.8,3.2078]
[1741462970280,0.5945,2221.1,2220.8,3.74828]
[1741462970775,0.65205447,2221.2,2220.8,3.74828]
[1741462971180,1.19245447,2221.2,2220.8,3.74828]
[1741462971582,1.19245447,2221.2,2220.8,3.2078]
[1741462973483,0.54042,2221.1,2220.8,3.2078]
[1741462973889,0.54044,2221.1,2220.8,3.2078]
[1741462975584,0.6432,2221.0,2220.8,3.2078]
[1741462975889,2.056,2220.9,2220.8,3.2078]
[1741462976189,2.6676,2220.9,2220.8,3.2078]
[1741462976386,2.6676,2220.9,2220.7,0.00675447]
[1741462976794,2.6676,2220.9,2220.8,3.2078]
[1741462980493,2.6676,2220.9,2220.7,0.00675447]
[1741462980689,6.6676,2220.9,2219.8,3.2078]
[1741462980889,3.2078,2220.6,2219.8,3.74852]
[1741462981095,0.54059,2220.4,2219.8,3.74852]
[1741462981391,0.54059,2220.4,2219.9,0.54071]
[1741462981893,0.54059,2220.4,2220.0,0.6177]
[1741462982290,3.3237,2220.5,2220.0,0.6177]
[1741462982593,0.54059,2220.4,2220.0,0.6177]
[1741462982985,0.54063,2220.3,2220.0,0.6177]
[1741462983187,3.3237,2220.5,2220.0,0.6177]
[1741462983489,3.2078,2220.3,2219.9,0.00675447]
[1741462983698,3.74849,2220.0,2219.9,0.00675447]
[1741462983891,5.80449,2220.0,2219.9,0.00675447]
[1741462984288,5.2638,2220.0,2219.4,3.2078]
[1741462984489,5.2638,2220.0,2219.0,3.2078]
[1741462984688,0.54076,2219.8,2219.3,0.54085]
[1741462984983,5.2638,2220.0,2219.3,0.54085]
[1741462985188,5.2638,2220.0,2219.1,0.36073262]
[1741462985189,5.2638,2220.0,2219.4,0.5851]
[1741462985406,2.056,2220.0,2219.6,0.54077]
[1741462985702,0.00675447,2219.9,2219.5,1.1549]
[1741462986095,0.00675447,2219.9,2219.5,0.6141]
[1741462986298,0.00675447,2219.9,2219.6,0.54078]
[1741462986895,0.00675447,2219.9,2219.5,0.6141]
[1741462986896,0.00675447,2219.9,2219.5,1.1549]
[1741462987294,0.00675447,2219.9,2219.5,0.6141]
[1741462987894,0.00675447,2219.9,2219.5,1.15489]
[1741462989100,0.00675447,2219.9,2219.5,0.6141]
[1741462989394,2.057,2220.4,2219.9,0.54071]
[1741462989599,2.057,2220.4,2219.8,3.2078]
[1741462989600,0.54062,2220.3,2220.0,1.2232]
[1741462989903,2.5976,2220.4,2220.0,1.2232]
[1741462990099,2.057,2220.4,2220.0,1.2232]
[1741462990395,2.06375447,2220.4,2220.0,1.77063447]
[1741462991504,2.06375447,2220.4,2220.1,0.54066]
[1741462991704,2.06375447,2220.4,2220.0,1.77062447]
[1741462992200,0.54066,2220.1,2220.0,0.00675447]
[1741462993998,3.74846,2220.1,2220.0,0.00675447]
[1741462994199,0.54066,2220.1,2220.0,0.00675447]
[1741462994498,3.74846,2220.1,2220.0,0.00675447]
[1741462994903,0.54063,2220.3,2220.0,0.00675447]
[1741462995104,2.057,2220.2,2220.0,0.54744447]
[1741462995304,2.057,2220.2,2220.1,0.6344]
[1741462996008,2.59764,2220.2,2220.0,0.00675447]
[1741462996210,3.24004,2220.2,2220.0,0.00675447]
[1741462996708,0.6144,2220.1,2220.0,0.00675447]
[1741462997804,1.15506,2220.1,2220.0,0.00675447]
[1741462999615,0.5407,2220.0,2219.5,0.5408]
[1741462999915,0.54072,2219.9,2219.6,0.5932]
[1741463000116,2.057,2219.8,2219.6,0.5932]
[1741463001004,2.057,2219.8,2218.7,0.54099]
[1741463001005,0.54089,2219.2,2218.7,0.54099]
[1741463001205,0.54089,2219.2,2218.9,0.6432]
[1741463001406,0.00675447,2219.2,2218.9,0.6432]
[1741463001601,0.00675447,2219.2,2218.9,1.18415]
[1741463002013,0.00675447,2219.2,2218.9,0.6432]
[1741463002409,0.00675447,2219.2,2218.9,1.18415]
[1741463002806,0.00675447,2219.2,2218.9,0.6432]
[1741463003013,0.00675447,2219.2,2218.9,1.18415]
[1741463003315,0.00675447,2219.2,2218.9,0.6432]
[1741463004609,0.00675447,2219.2,2218.9,1.18414]
[1741463004811,0.00675447,2219.2,2219.0,3.74871]
[1741463005015,0.00675447,2219.2,2219.0,3.2078]
[1741463005215,0.00675447,2219.2,2219.0,3.74871]
[1741463005414,0.00675447,2219.2,2219.1,0.54091]
[1741463005612,0.00675447,2219.2,2219.1,1.18031]
[1741463006215,0.00675447,2219.2,2219.1,0.6394]
[1741463010629,0.00675447,2219.2,2219.1,1.18031]
[1741463011722,9.04482,2220.3,2219.7,0.54075]
[1741463011922,7.5514,2220.2,2219.8,1.77753]
[1741463012222,7.5514,2220.2,2219.9,0.54071]
[1741463012529,5.4944,2220.2,2219.9,0.54071]
[1741463013020,7.5514,2220.2,2219.9,0.54071]
[1741463013728,7.5514,2220.2,2219.8,2.38477447]
[1741463014330,7.5514,2220.2,2219.9,0.54071]
[1741463014521,5.4944,2220.2,2219.9,0.54071]
[1741463014721,7.5514,2220.2,2220.0,3.2078]
[1741463014926,4.904,2220.2,2220.1,0.54066]
[1741463015223,4.904,2220.2,2220.0,3.74847]
[1741463015416,4.904,2220.2,2220.0,3.2078]
[1741463015821,4.904,2220.2,2220.0,3.74847]
[1741463016320,2.06375447,2220.3,2220.0,3.74847]
[1741463016729,2.06375447,2220.3,2220.1,0.54066]
[1741463017027,2.06375447,2220.3,2220.0,3.74848]
[1741463017226,0.00675447,2220.3,2220.0,3.2078]
[1741463017430,0.00675447,2220.3,2220.2,0.54064]
[1741463019931,0.00675447,2220.3,2220.2,1.12814]
[1741463020832,0.6019,2220.7,2220.2,0.5875]
[1741463021133,2.6579,2220.7,2220.5,3.74835]
[1741463021429,2.6579,2220.7,2220.6,0.54054]
[1741463021631,2.6579,2220.7,2220.6,1.18784]
[1741463024832,0.00675447,2220.9,2220.6,0.6473]
[1741463025039,0.00675447,2220.9,2220.8,0.54049]
[1741463027432,0.00675447,2220.9,2220.8,3.74829]
[1741463028241,1.227,2222.1,2220.8,3.2078]
[1741463028439,1.227,2222.1,2221.6,3.2078]
[1741463029132,1.227,2222.1,2221.9,0.54021]
[1741463029333,1.23375447,2222.1,2221.9,3.748]
[1741463031336,1.23375447,2222.1,2221.9,3.2078]
[1741463032038,1.23375447,2222.1,2221.9,3.74802]
[1741463032946,1.23375447,2222.1,2221.9,3.2078]
[1741463037650,1.23375447,2222.1,2221.7,0.54027]
[1741463038243,1.23375447,2222.1,2221.6,3.75482447]
[1741463038946,0.54021,2222.0,2221.6,3.21455447]
[1741463039148,0.54024,2221.9,2221.6,3.21455447]
[1741463039449,2.054,2221.8,2221.6,3.21455447]
[1741463039837,0.6373,2221.7,2221.6,3.21455447]
[1741463046351,6.08157,2221.7,2221.6,0.00675447]
[1741463046548,0.54036,2221.4,2221.0,0.6164]
[1741463046749,0.6107,2221.3,2221.0,0.6164]
[1741463047058,0.6107,2221.3,2221.1,3.2078]
[1741463054660,0.6107,2221.3,2221.0,0.00675447]
[1741463055055,1.2545,2221.3,2221.0,0.00675447]
[1741463055563,1.79488,2221.3,2221.0,0.00675447]
[1741463056158,0.54042,2221.1,2221.0,0.00675447]
[1741463056461,0.54053,2220.7,2220.3,0.593]
[1741463056681,2.6906,2220.6,2220.3,0.593]
[1741463056962,0.5883,2220.5,2220.3,1.13361]
[1741463057152,0.5883,2220.5,2220.3,0.593]
[1741463060470,0.5883,2220.5,2220.3,1.13361]
[1741463060769,0.5883,2220.5,2220.4,3.2078]
[1741463069669,4.5883,2220.5,2220.4,1.2638]
[1741463069868,16.40947349,2220.5,2219.6,0.6411]
[1741463070071,3.2078,2219.8,2219.6,0.6411]
[1741463070279,3.2078,2219.8,2219.3,1.18435245]
[1741463070280,2.59377,2219.7,2219.3,1.18435245]
[1741463070470,2.053,2219.7,2219.3,0.63]
[1741463070672,2.053,2219.7,2219.3,1.17086]
[1741463070872,2.59376,2219.7,2219.3,1.17086]
[1741463071171,2.053,2219.7,2219.3,1.17086]
[1741463071377,2.053,2219.7,2219.3,0.63]
[1741463072076,2.59378,2219.7,2219.3,0.63]
[1741463072276,0.5408,2219.6,2219.3,0.63]
[1741463072870,1.1284,2219.6,2219.3,0.63]
[1741463073170,1.1284,2219.6,2219.0,1.18201]
[1741463073370,3.2078,2219.5,2219.0,0.6411]
[1741463073578,3.74862,2219.5,2219.0,1.18203]
[1741463073772,3.75537447,2219.5,2219.0,1.18203]
[1741463074479,3.21455447,2219.5,2219.0,1.18203]
[1741463074980,0.00675447,2219.5,2219.0,0.6411]
[1741463075277,0.00675447,2219.5,2219.1,0.54089]
[1741463075580,0.00675447,2219.5,2219.0,1.264]
[1741463075882,0.00675447,2219.5,2219.1,0.5409]
[1741463076274,0.00675447,2219.5,2219.2,0.54088]
[1741463076579,0.00675447,2219.5,2219.3,1.13514]
[1741463077572,0.00675447,2219.5,2219.4,0.54083]
[1741463078881,2.054,2219.9,2219.3,0.5943]
[1741463079081,2.054,2219.9,2219.5,3.2078]
[1741463079277,2.054,2219.9,2219.7,0.54074]
[1741463079473,2.054,2219.9,2219.8,1.17574]
[1741463080376,2.054,2219.9,2219.8,0.635]
[1741463080581,2.054,2219.9,2219.8,1.17574]
[1741463080783,2.05975447,2220.1,2219.8,1.17574]
[1741463081580,0.00675447,2220.1,2219.9,0.54069]
[1741463082083,0.00675447,2220.1,2220.0,0.6086]
[1741463082485,0.00675447,2220.1,2220.0,1.14929]
[1741463086694,0.6143,2220.7,2220.3,0.5406]
[1741463087777,0.62105447,2220.7,2220.4,0.54058]
[1741463088085,0.00675447,2220.7,2220.1,3.8364]
[1741463088288,0.00675447,2220.7,2220.4,0.54058]
[1741463089587,0.00675447,2220.7,2220.5,0.6364]
[1741463089889,0.00675447,2220.7,2220.5,1.2716]
[1741463090185,0.00675447,2220.7,2220.6,0.54054]
[1741463090781,0.00675447,2220.7,2220.5,4.4794]
[1741463091886,0.00675447,2220.7,2220.5,5.01996]
[1741463092185,0.00675447,2220.7,2220.5,4.4794]
[1741463092583,0.00675447,2220.7,2220.5,1.2716]
[1741463092778,0.00675447,2220.7,2220.5,1.81214]
[1741463092978,0.00675447,2220.7,2220.6,0.54054]
[1741463093788,0.00675447,2220.7,2220.5,1.81214]
[1741463093990,0.00675447,2220.7,2220.5,1.2716]
[1741463094193,0.00675447,2220.7,2220.6,0.54054]
[1741463096886,0.00675447,2220.7,2220.6,3.74834]
[1741463097086,5.2598,2221.1,2220.6,3.2078]
[1741463097287,5.2598,2221.1,2221.0,0.54044]
[1741463097587,3.2078,2221.1,2221.0,0.54044]
[1741463098290,3.2078,2221.1,2220.8,0.00675447]
[1741463098686,3.2078,2221.1,2220.8,0.54723447]
[1741463099389,3.2078,2221.1,2220.8,0.00675447]
[1741463099892,3.2078,2221.1,2220.8,0.54724447]
[1741463100082,3.2078,2221.1,2220.8,0.00675447]
[1741463102090,3.2078,2221.1,2220.8,0.54723447]
[1741463102285,3.2078,2221.1,2220.8,0.00675447]
[1741463102491,3.2078,2221.1,2221.0,0.54044]
[1741463103096,3.2078,2221.1,2221.0,1.13104]
[1741463103689,2.70235447,2221.3,2221.0,1.13104]
[1741463103887,0.65035447,2221.3,2221.0,0.5906]
[1741463104083,0.00675447,2221.3,2221.1,0.5404]
[1741463104290,0.00675447,2221.3,2220.8,0.00675447]
[1741463104496,3.2078,2221.1,2220.8,0.00675447]
[1741463104687,1.2553,2221.0,2220.8,0.00675447]
[1741463107990,1.2553,2221.0,2220.8,0.54723447]
[1741463108894,1.2553,2221.0,2220.8,0.00675447]
[1741463109205,1.2553,2221.0,2220.8,0.54724447]
[1741463109592,1.2553,2221.0,2220.9,0.54047]
[1741463109996,1.2553,2221.0,2220.8,1.18913447]
[1741463110200,1.2553,2221.0,2220.8,0.64865447]
[1741463110394,1.2553,2221.0,2220.8,0.00675447]
[1741463111188,1.79575,2221.0,2220.8,0.00675447]
[1741463111501,1.2553,2221.0,2220.8,0.00675447]
[1741463112194,1.79576,2221.0,2220.8,0.00675447]
[1741463112396,1.2553,2221.0,2220.8,0.00675447]
[1741463112792,1.2553,2221.0,2220.8,0.54723447]
[1741463112988,1.2553,2221.0,2220.9,0.54047]
[1741463113195,1.2553,2221.0,2220.8,0.54723447]
[1741463113391,1.2553,2221.0,2220.9,0.54047]
[1741463113997,0.6163,2221.0,2220.9,0.54047]
[1741463114398,0.6163,2221.0,2220.8,0.54723447]
[1741463116706,0.6163,2221.0,2220.8,0.00675447]
[1741463118201,0.6163,2221.0,2220.8,0.54723447]
[1741463118895,0.6163,2221.0,2220.8,0.00675447]
[1741463120403,0.54051,2220.8,2220.3,0.6056]
[1741463120600,5.8644,2220.7,2220.3,1.14621]
[1741463120907,6.40492,2220.7,2220.1,0.54066]
[1741463121095,5.8644,2220.7,2220.1,1.13426]
[1741463121297,5.8644,2220.7,2220.2,0.54063]
[1741463121499,5.8644,2220.7,2220.2,1.09774578]
[1741463121704,5.8644,2220.7,2220.2,1.10450025]
[1741463122208,6.40493,2220.7,2220.2,0.00675447]
[1741463122700,0.54054,2220.6,2220.2,0.00675447]
[1741463122898,1.12628,2220.5,2220.2,0.00675447]
[1741463123094,1.2308,2220.5,2220.2,0.00675447]
[1741463126807,1.77137,2220.5,2220.2,0.00675447]
[1741463127210,1.2308,2220.5,2220.2,0.00675447]
[1741463130906,1.77137,2220.5,2220.2,0.00675447]
[1741463132415,1.2308,2220.5,2220.2,0.00675447]
[1741463132606,1.77137,2220.5,2220.2,0.00675447]
[1741463133313,1.2308,2220.5,2220.2,0.00675447]
[1741463133511,3.2078,2220.3,2220.2,0.00675447]
[1741463133705,5.2588,2220.3,2220.2,0.00675447]
[1741463133911,5.79941,2220.3,2220.2,0.00675447]
[1741463134517,5.2588,2220.3,2220.2,0.00675447]
[1741463135619,5.79941,2220.3,2220.2,0.00675447]
[1741463138116,5.79941,2220.3,2219.4,0.54082]
[1741463138117,0.54069,2220.0,2219.4,0.54082]
[1741463138312,2.6912,2219.9,2219.5,0.5408]
[1741463138517,3.3356,2219.9,2219.5,0.5408]
[1741463138722,3.3356,2219.9,2219.4,5.00382]
[1741463139115,3.87632,2219.9,2219.4,5.00382]
[1741463139321,3.34235447,2219.9,2219.4,5.01057447]
[1741463140219,3.2078,2219.7,2219.4,4.46975447]
[1741463140421,3.88307447,2219.9,2219.4,4.46975447]
[1741463140821,3.88307447,2219.9,2219.4,5.01058447]
[1741463141023,2.05775447,2219.9,2219.4,4.46975447]
[1741463141322,0.00675447,2219.9,2219.6,0.54077]
[1741463141523,0.00675447,2219.9,2219.7,3.2078]
[1741463141726,0.00675447,2219.9,2219.8,1.2171]
[1741463142733,0.00675447,2219.9,2219.8,1.75784]
[1741463143227,2.051,2220.5,2219.8,5.8497]
[1741463143529,2.051,2220.5,2220.2,0.54064]
[1741463143828,2.051,2220.5,2220.3,1.2144]
[1741463144019,1.8476,2220.7,2220.3,1.2144]
[1741463144221,2.051,2220.6,2220.3,1.2144]
[1741463146128,5.2588,2220.6,2220.3,1.2144]
[1741463146526,5.79934,2220.6,2220.3,1.2144]
[1741463146733,5.2588,2220.6,2220.1,1.2421]
[1741463146930,5.79936,2220.6,2220.1,1.2421]
[1741463147125,5.2588,2220.6,2220.1,1.2421]
[1741463147634,5.2588,2220.6,2220.1,1.78276]
[1741463147824,5.2588,2220.6,2220.1,1.2421]
[1741463148637,5.2588,2220.6,2220.1,1.78276]
[1741463148837,5.2588,2220.6,2220.1,1.2421]
[1741463149131,5.79934,2220.6,2220.1,1.2421]
[1741463149435,5.2588,2220.6,2220.1,1.2421]
[1741463149634,5.79935,2220.6,2220.1,1.2421]
[1741463149935,5.2588,2220.6,2220.1,1.78276]
[1741463150322,5.2588,2220.6,2220.1,1.2421]
[1741463150527,0.54058,2220.5,2220.1,1.2421]
[1741463150927,5.79935,2220.6,2220.1,1.2421]
[1741463151131,5.2588,2220.6,2220.1,1.2421]
[1741463151336,0.54057,2220.5,2220.1,1.2421]
[1741463151835,5.79935,2220.6,2220.1,1.78276]
[1741463152029,0.54059,2220.4,2220.0,3.2078]
[1741463152535,4.34692,2220.3,2219.9,1.2461]
[1741463152839,2.6549,2220.2,2219.9,1.2461]
[1741463153033,2.6549,2220.2,2219.9,1.78681]
[1741463153433,2.6549,2220.2,2219.9,1.2461]
[1741463154037,2.6549,2220.2,2219.9,1.78681]
[1741463155131,2.6549,2220.2,2219.9,1.2461]
[1741463157736,3.19554,2220.2,2219.9,1.2461]
[1741463158240,7.5589,2220.2,2219.4,0.00675447]
[1741463158440,0.54071,2219.9,2219.5,1.1864]
[1741463158638,3.7485,2220.0,2219.5,1.1864]
[1741463159036,0.6393,2219.9,2219.5,1.1864]
[1741463159338,0.54074,2219.8,2219.5,0.6456]
[1741463159536,1.18002,2219.9,2219.5,0.6456]
[1741463159736,0.6393,2219.9,2219.5,1.18641]
[1741463159936,0.6393,2219.9,2219.5,0.6456]
[1741463160138,1.18001,2219.9,2219.5,0.6456]
[1741463160644,1.18002,2219.9,2219.5,0.6456]
[1741463161237,2.59074,2219.8,2219.5,0.6456]
[1741463161443,2.59075,2219.8,2219.5,0.6456]
[1741463161749,0.6218,2219.7,2219.5,0.6456]
[1741463163548,0.6218,2219.7,2219.4,0.62135447]
[1741463163749,0.6218,2219.7,2219.4,1.21615447]
[1741463164849,0.6393,2219.9,2219.4,4.42395447]
[1741463165050,2.05,2219.9,2219.4,4.42395447]
[1741463165247,2.05,2219.9,2219.7,0.54074]
[1741463165555,2.05,2219.9,2219.8,0.6179]
[1741463166449,0.61,2220.3,2219.8,0.6179]
[1741463166646,3.2078,2220.6,2220.1,0.54065]
[1741463166847,2.05,2220.5,2220.2,0.5892]
[1741463169652,2.05,2220.5,2220.2,1.12983]
[1741463171350,2.049,2220.6,2220.2,0.5892]
[1741463171554,2.049,2220.6,2220.3,3.7484]
[1741463171956,2.049,2220.6,2220.4,0.54057]
[1741463172157,2.049,2220.6,2220.5,0.54057]
[1741463173058,2.049,2220.6,2220.4,0.6154]
[1741463173860,2.049,2220.6,2220.4,1.15599]
[1741463174462,2.049,2220.6,2220.4,0.6154]
[1741463175162,2.049,2220.6,2220.4,1.15599]
[1741463176048,2.049,2220.6,2220.4,0.6154]
[1741463176261,2.049,2220.6,2220.4,1.15598]
[1741463177258,2.049,2220.6,2220.5,0.54057]
[1741463177661,2.049,2220.6,2220.4,1.15598]
[1741463178861,2.049,2220.6,2220.4,0.6154]
[1741463179359,2.049,2220.6,2220.4,1.15598]
[1741463180256,0.00675447,2220.7,2220.5,0.54057]
[1741463180460,0.00675447,2220.7,2220.6,0.54054]
[1741463181059,0.00675447,2220.7,2220.5,0.54055]
[1741463181656,0.00675447,2220.7,2220.6,0.6228]
[1741463181961,0.00675447,2220.7,2220.6,1.16334]
[1741463182159,0.00675447,2220.7,2220.6,4.37114]
[1741463182363,3.2078,2221.2,2220.6,7.8306]
[1741463182553,3.2078,2221.2,2220.6,3.8306]
[1741463182965,0.5961,2221.1,2220.8,0.54047]
[1741463183167,0.5961,2221.1,2220.6,3.8306]
[1741463183561,0.60285447,2221.1,2220.6,3.83735447]
[1741463183958,0.60285447,2221.1,2220.9,0.54046]
[1741463184868,0.00675447,2221.1,2221.0,1.15404]
[1741463185259,0.00675447,2221.1,2221.0,0.6136]
[1741463185756,0.00675447,2221.1,2221.0,1.2329]
[1741463187563,0.00675447,2221.1,2220.8,0.54048]